Workbook

Sheet паспорт
A1: ПАТ "УКРТРАНСГАЗ" | G1: ПАСПОРТ ФІЗИКО-ХІМІЧНИХ ПОКАЗНИКІВ ПРИРОДНОГО ГАЗУ №106
A2: Філія "УМГ "Київтрансгаз" | G2: переданогоДиканським ЛВУМГ та прийнятого ПАТ "Полтавагаз"
A3: Диканський п/м Диканське ЛВУМГ | G3: Маршрут №106
A4: Вимірювальна хіміко-аналітична лабораторія
A5: Свідоцтво № 186-13 чинне до 05.12.2018 р. | K5: по газопроводу "ЄЛЕЦЬК - КУРСЬК - ДИКАНЬКА" | V5: за період з | X5: 2017-05-01 | Z5: по | AA5: 31.05.2017р.
A7: Число місяця | B7: Компонентний склад, % мол. | N7: Фізико-хімічні показники газу обчислені на основі компонентного складу, 101,325 кПа | X7: Температура точки роси за вологою (Р = 3.92 МПа), °С | Y7: Температура точки роси за вуглеводнями, °С | Z7: Вміст сірководню, г/м3 | AA7: Вміст меркаптанової сірки, г/м3 | AB7: Вміст механічних домішок, г/м3
N8: Густина абсолютна, кг/м3,при 20 ºС, | O8: Температура вимірювання/згоряння при 20/25°С
B9: метан, С1 | C9: етан, С2 | D9: пропан, С3 | E9: ізо-бутан, і-С4 | F9: н-бутан, н-С4 | G9: нео-пентан, нео-С5 | H9: ізо-пентан, і-С5 | I9: н-пентан, н-С5 | J9: гексани та вищі, С6+ | K9: кисень, О2 | L9: азот, N2 | M9: діоксид вуглецю, CО2 | O9: Теплота згоряння нижча | R9: Теплота згоряння вища | U9: Число Воббе вище
O10: ккал/м3 | P10: МДж/м3 | Q10: кВт⋅год/м3 | R10: ккал/м3 | S10: МДж/м3 | T10: кВт⋅год/м3 | U10: ккал/м3 | V10: МДж/м3 | W10: кВт⋅год/м3
A11: 1 | O11: 8249.605923 | P11: 34.5411 | Q11: =P11/3.6 -> 9.59475 | R11: 9139.001672 | S11: 38.265 | T11: =S11/3.6 -> 10.62916667 | AC11: =SUM(B11:M11)+$K$42+$N$42 -> 0
A12: 2 | O12: 8249.605923 | P12: 34.5411 | Q12: =P12/3.6 -> 9.59475 | R12: 9139.001672 | S12: 38.265 | T12: =S12/3.6 -> 10.62916667 | AC12: 0
A13: 3 | O13: 8249.605923 | P13: 34.5411 | Q13: 9.59475 | R13: 9139.001672 | S13: 38.265 | T13: 10.62916667 | AC13: 0 | AD13: =IF(AC13=100,"ОК"," ") -> 
A14: 4 | B14: 90.9644 | C14: 4.4119 | D14: 1.0929 | E14: 0.1252 | F14: 0.19 | G14: 0.0039 | H14: 0.058 | I14: 0.0476 | J14: 0.0628 | K14: 0.0092 | L14: 2.0951 | M14: 0.939 | N14: 0.7383 | O14: 8258.120877 | P14: 34.5751 | Q14: 9.604194444 | R14: 9147.917393 | S14: 38.3005 | T14: 10.63902778 | U14: 11683.42489 | V14: 48.9185 | W14: 13.587822 | X14: -3.5 | Y14: 1.7 | AC14: 100 | AD14: =IF(AC14=100,"ОК"," ") -> ОК
A15: 5 | O15: 8258.120877 | P15: 34.5751 | Q15: 9.604194444 | R15: 9147.917393 | S15: 38.3005 | T15: 10.63902778 | AC15: 0
A16: 6 | O16: 8258.120877 | P16: 34.5751 | Q16: 9.604194444 | R16: 9147.917393 | S16: 38.3005 | T16: 10.63902778 | AC16: 0
A17: 7 | O17: 8258.120877 | P17: 34.5751 | Q17: 9.604194444 | R17: 9147.917393 | S17: 38.3005 | T17: 10.63902778 | AC17: 0
A18: 8 | O18: 8258.120877 | P18: 34.5751 | Q18: 9.604194444 | R18: 9147.917393 | S18: 38.3005 | T18: 10.63902778 | AC18: 0
A19: 9 | O19: 8258.120877 | P19: 34.5751 | Q19: 9.604194444 | R19: 9147.917393 | S19: 38.3005 | T19: 10.63902778 | AC19: 0
A20: 10 | O20: 8258.120877 | P20: 34.5751 | Q20: 9.604194444 | R20: 9147.917393 | S20: 38.3005 | T20: 10.63902778 | AC20: 0
A21: 11 | B21: 90.8619 | C21: 4.4393 | D21: 1.0919 | E21: 0.1289 | F21: 0.2018 | G21: 0.004 | H21: 0.0597 | I21: 0.0482 | J21: 0.0728 | K21: 0.0102 | L21: 2.1249 | M21: 0.9565 | N21: 0.7395 | O21: 8262.443988 | P21: 34.5932 | Q21: 9.609222222 | R21: 9152.407696 | S21: 38.3193 | T21: 10.64425 | U21: 11680.20062 | V21: 48.905 | W21: 13.58407218 | X21: -11.1 | Y21: -8.7 | AC21: 100.0001
A22: 12 | O22: 8262.443988 | P22: 34.5932 | Q22: 9.609222222 | R22: 9152.407696 | S22: 38.3193 | T22: 10.64425 | AC22: 0
A23: 13 | O23: 8262.443988 | P23: 34.5932 | Q23: 9.609222222 | R23: 9152.407696 | S23: 38.3193 | T23: 10.64425 | AC23: 0
A24: 14 | O24: 8262.443988 | P24: 34.5932 | Q24: 9.609222222 | R24: 9152.407696 | S24: 38.3193 | T24: 10.64425 | AC24: 0
A25: 15 | O25: 8262.443988 | P25: 34.5932 | Q25: 9.609222222 | R25: 9152.407696 | S25: 38.3193 | T25: 10.64425 | Z25: <0,006 | AA25: <0,02 | AB25: від. | AC25: 0
A26: 16 | B26: 90.9203 | C26: 4.4644 | D26: 1.075 | E26: 0.1233 | F26: 0.1886 | G26: 0.0039 | H26: 0.0551 | I26: 0.0446 | J26: 0.0738 | K26: 0.0091 | L26: 2.0983 | M26: 0.9436 | N26: 0.7386 | O26: 8259.912221 | P26: 34.5826 | Q26: 9.606277778 | R26: 9149.804276 | S26: 38.3084 | T26: 10.64122222 | U26: 11683.52042 | V26: 48.9189 | W26: 13.58793311 | X26: -9.5 | Y26: -8.6 | AC26: 100 | AD26: ОК
A27: 17 | O27: 8259.912221 | P27: 34.5826 | Q27: 9.606277778 | R27: 9149.804276 | S27: 38.3084 | T27: 10.64122222 | AC27: 0
A28: 18 | O28: 8259.912221 | P28: 34.5826 | Q28: 9.606277778 | R28: 9149.804276 | S28: 38.3084 | T28: 10.64122222 | AC28: 0
A29: 19 | O29: 8259.912221 | P29: 34.5826 | Q29: 9.606277778 | R29: 9149.804276 | S29: 38.3084 | T29: 10.64122222 | AC29: 0
A30: 20 | O30: 8259.912221 | P30: 34.5826 | Q30: 9.606277778 | R30: 9149.804276 | S30: 38.3084 | T30: 10.64122222 | AC30: 0 | AD30: =IF(AC30=100,"ОК"," ") -> 
A31: 21 | O31: 8259.912221 | P31: 34.5826 | Q31: 9.606277778 | R31: 9149.804276 | S31: 38.3084 | T31: 10.64122222 | AC31: 0
A32: 22 | O32: 8259.912221 | P32: 34.5826 | Q32: 9.606277778 | R32: 9149.804276 | S32: 38.3084 | T32: 10.64122222 | AC32: 0
A33: 23 | O33: 8259.912221 | P33: 34.5826 | Q33: 9.606277778 | R33: 9149.804276 | S33: 38.3084 | T33: 10.64122222 | AC33: 0 | AD33: =IF(AC33=100,"ОК"," ") -> 
A34: 24 | O34: 8259.912221 | P34: 34.5826 | Q34: 9.606277778 | R34: 9149.804276 | S34: 38.3084 | T34: 10.64122222 | AC34: 0
A35: 25 | O35: 8259.912221 | P35: 34.5826 | Q35: 9.606277778 | R35: 9149.804276 | S35: 38.3084 | T35: 10.64122222 | AC35: 0
A36: 26 | O36: 8259.912221 | P36: 34.5826 | Q36: 9.606277778 | R36: 9149.804276 | S36: 38.3084 | T36: 10.64122222
A37: 27 | O37: 8259.912221 | P37: 34.5826 | Q37: 9.606277778 | R37: 9149.804276 | S37: 38.3084 | T37: 10.64122222
A38: 28 | O38: 8259.912221 | P38: 34.5826 | Q38: 9.606277778 | R38: 9149.804276 | S38: 38.3084 | T38: 10.64122222
A39: 29 | O39: 8259.912221 | P39: 34.5826 | Q39: 9.606277778 | R39: 9149.804276 | S39: 38.3084 | T39: 10.64122222
A40: 30 | O40: 8259.912221 | P40: 34.5826 | Q40: 9.606277778 | R40: 9149.804276 | S40: 38.3084 | T40: 10.64122222 | AC40: =SUM(B40:M40)+$K$42+$N$42 -> 0
A41: 31 | O41: 8259.912221 | P41: 34.5826 | Q41: 9.606277778 | R41: 9149.804276 | S41: 38.3084 | T41: 10.64122222 | AC41: =SUM(B41:M41)+$K$42+$N$42 -> 0
A42: Рівень одоризації відповідає чинним нормативним документам | O42: =SUMPRODUCT(O11:O41,' розрахунок'!D7:D37)/' розрахунок'!D38 -> 8259.506076 | P42: =SUMPRODUCT(P11:P41,' розрахунок'!D7:D37)/' розрахунок'!D38 -> 34.58101686 | Q42: =SUMPRODUCT(Q11:Q41,' розрахунок'!D7:D37)/' розрахунок'!D38 -> 9.605838015 | R42: =SUMPRODUCT(R11:R41,' розрахунок'!D7:D37)/' розрахунок'!D38 -> 9149.363104 | S42: =SUMPRODUCT(S11:S41,' розрахунок'!D7:D37)/' розрахунок'!D38 -> 38.30668285 | T42: =SUMPRODUCT(T11:T41,' розрахунок'!D7:D37)/' розрахунок'!D38 -> 10.64074524
H43: Середньозважене значення теплоти згоряння:
B46: Заступник начальника Диканського ЛВУМГ 31.05.2017р. | L46: Герасименко І.М. | Z46: =TODAY() -> 2017-06-01
B48: Завідувач лабораторії Диканського ЛВУМГ | L48: Горшковоз О.В. | Z48: =TODAY() -> 2017-06-01
B50: Начальник служби ГВМ та М Диканського ЛВУМГ | L50: Левадний С.А. | Z50: =TODAY() -> 2017-06-01

Sheet розрахунок
A2: Додаток до Паспорту фізико-хімічних показників природного газу по маршруту №106
A4: Число місяця | B4: Теплота згоряння вища, МДж/м3 | C4: Полтавська область | D4: Загальний обсяг газу, м3
C5: Обсяг газу переданого за добу, м3
C6: ГРС Зіньків
A7: 1 | B7: =паспорт!S11 -> 38.265 | C7: 8562.08 | D7: =SUM(C7:C7) -> 8562.08
A8: 2 | B8: =паспорт!S12 -> 38.265 | C8: 8680.07 | D8: 8680.07
A9: 3 | B9: =паспорт!S13 -> 38.265 | C9: 7767.9 | D9: 7767.9
A10: 4 | B10: =паспорт!S14 -> 38.3005 | C10: 7715.42 | D10: 7715.42
A11: 5 | B11: =паспорт!S15 -> 38.3005 | C11: 8903.65 | D11: 8903.65
A12: 6 | B12: =паспорт!S16 -> 38.3005 | C12: 9088.54 | D12: 9088.54
A13: 7 | B13: =паспорт!S17 -> 38.3005 | C13: 8236.46 | D13: 8236.46
A14: 8 | B14: =паспорт!S18 -> 38.3005 | C14: 8718.47 | D14: 8718.47
A15: 9 | B15: =паспорт!S19 -> 38.3005 | C15: 10842.06 | D15: 10842.06
A16: 10 | B16: =паспорт!S20 -> 38.3005 | C16: 17038.07 | D16: 17038.07
A17: 11 | B17: =паспорт!S21 -> 38.3193 | C17: 17377.05 | D17: 17377.05
A18: 12 | B18: =паспорт!S22 -> 38.3193 | C18: 21159.02 | D18: 21159.02
A19: 13 | B19: =паспорт!S23 -> 38.3193 | C19: 24329.46 | D19: 24329.46
A20: 14 | B20: =паспорт!S24 -> 38.3193 | C20: 19975.92 | D20: 19975.92
A21: 15 | B21: =паспорт!S25 -> 38.3193 | C21: 12432.64 | D21: 12432.64
A22: 16 | B22: =паспорт!S26 -> 38.3084 | C22: 10010.32 | D22: 10010.32
A23: 17 | B23: =паспорт!S27 -> 38.3084 | C23: 12384.17 | D23: 12384.17
A24: 18 | B24: =паспорт!S28 -> 38.3084 | C24: 15231.76 | D24: 15231.76
A25: 19 | B25: =паспорт!S29 -> 38.3084 | C25: 18476.64 | D25: 18476.64
A26: 20 | B26: =паспорт!S30 -> 38.3084 | C26: 15501.17 | D26: 15501.17
A27: 21 | B27: =паспорт!S31 -> 38.3084 | C27: 12120.45 | D27: 12120.45
A28: 22 | B28: =паспорт!S32 -> 38.3084 | C28: 10058.85 | D28: 10058.85
A29: 23 | B29: =паспорт!S33 -> 38.3084 | C29: 8504.02 | D29: 8504.02
A30: 24 | B30: =паспорт!S34 -> 38.3084 | C30: 7791.68 | D30: 7791.68
A31: 25 | B31: =паспорт!S35 -> 38.3084 | C31: 7565.02 | D31: 7565.02
A32: 26 | B32: =паспорт!S36 -> 38.3084 | C32: 7100.53 | D32: 7100.53
A33: 27 | B33: =паспорт!S37 -> 38.3084 | C33: 7870.47 | D33: 7870.47
A34: 28 | B34: =паспорт!S38 -> 38.3084 | C34: 7854.43 | D34: 7854.43
A35: 29 | B35: =паспорт!S39 -> 38.3084 | C35: 6799.42 | D35: 6799.42
A36: 30 | B36: =паспорт!S40 -> 38.3084 | C36: 7013.07 | D36: 7013.07
A37: 31 | B37: =паспорт!S41 -> 38.3084 | C37: 6774.24 | D37: 6774.24
A38: Загальний обсяг газу, м3 | C38: =SUM(C7:C37) -> 351883.05 | D38: =SUM(D7:D37) -> 351883.05
A39: Енергія, МДж | C39: =SUMPRODUCT(B7:B37,C7:C37) -> 13479472.4 | D39: =SUMPRODUCT(B7:B37,D7:D37) -> 13479472.4
A40: Теплота згоряння (середньозважене значення за місяць), МДж/м³ | C40: =C39/C38 -> 38.30668285 | D40: 38.30668285
A41: Теплота згоряння (середньозважене значення за місяць), ккал/м³ | C41: =C40*238.8459 -> 9149.394142 | D41: 9149.394142
A42: Теплота згоряння (середньозважене значення за місяць), кВт*год./м³ | C42: =C40/3.6 -> 10.64074524 | D42: 10.64074524

Sheet додаток
A2: Додаток до Паспорту фізико-хімічних показників природного газу № | E2: 106
A4: Область | B4: ГРС, прямий споживач | C4: Cередньозважене значення вищої теплоти згоряння
C5: МДж/м³ | D5: ккал/м³ | E5: кВт*год./м³
A6: Полтавська область | B6: ГРС Зіньків | C6: =' розрахунок'!C40 -> 38.30668285 | D6: =' розрахунок'!C41 -> 9149.394142 | E6: =' розрахунок'!C42 -> 10.64074524
A7: Середньозважене значення вищої теплоти згоряння по маршруту №106 | C7: =C6 -> 38.30668285 | D7: =D6 -> 9149.394142 | E7: 10.64074524
A11: Заступник начальника Диканського ЛВУМГ | C11: Герасименко І.М. | E11: =TODAY() -> 2017-06-01
A13: Завідувач вимірювальної хіміко-аналітичної лабораторії лабораторії | C13: Горшковоз О.В. | E13: =TODAY() -> 2017-06-01
A15: Начальник службиГВ та М | C15: Левадний С.А. | E15: =TODAY() -> 2017-06-01

Sheet variablesList (hidden)
A1: 3 | B1: x:\gaysin | C1: 10, 11, 24, 25, 127, 128, 132, 180, 207, 215 | D1: x:\
B2: x:\Illinci
B3: x:\Talne
